bitfinex-derivatives/quotes_BTCF0:USTF0_20250812
["timestamp","ask_amount","ask_price","bid_price","bid_amount"]
[1755019191410,0.3116091,119860.0,119850.0,0.75863124]
[1755019193213,0.3116091,119860.0,119850.0,0.1698506]
[1755019193416,0.3116091,119860.0,119850.0,0.003]
[1755019193607,0.98383644,119860.0,119850.0,0.003]
[1755019194221,0.201623,119840.0,119830.0,0.83911294]
[1755019194421,1.011263,119840.0,119830.0,0.95998294]
[1755019194612,1.111263,119840.0,119830.0,0.95998294]
[1755019194814,1.011263,119840.0,119830.0,0.68169414]
[1755019195011,1.011263,119840.0,119830.0,0.77831414]
[1755019195216,1.011263,119840.0,119830.0,0.79310414]
[1755019195520,1.121263,119840.0,119830.0,0.79310414]
[1755019195720,1.121263,119840.0,119830.0,0.71868414]
[1755019195920,1.12975706,119840.0,119830.0,0.71868414]
[1755019196222,1.12975706,119840.0,119830.0,0.68469414]
[1755019196522,1.01975706,119840.0,119830.0,0.68469414]
[1755019196723,1.01975706,119840.0,119830.0,0.78131414]
[1755019197019,1.01975706,119840.0,119830.0,0.2907488]
[1755019197220,1.01975706,119840.0,119830.0,0.79910414]
[1755019197423,1.01975706,119840.0,119830.0,0.2937488]
[1755019197723,1.01975706,119840.0,119830.0,0.79910414]
[1755019202428,1.01975706,119840.0,119830.0,0.2937488]
[1755019202628,1.12975706,119840.0,119830.0,0.006]
[1755019203218,1.12975706,119840.0,119830.0,0.51135534]
[1755019203418,1.01975706,119840.0,119830.0,0.51135534]
[1755019203619,1.12975706,119840.0,119830.0,0.51135534]
[1755019203919,1.13075706,119840.0,119830.0,0.50835534]
[1755019204619,1.13275706,119840.0,119830.0,0.50535534]
[1755019205330,0.1317499,119830.0,119820.0,0.3710831]
[1755019205525,0.2021999,119830.0,119820.0,0.87643844]
[1755019207124,0.11876,119820.0,119810.0,0.2042038]
[1755019207320,0.9091169,119820.0,119810.0,0.70955914]
[1755019208220,0.9656869,119820.0,119810.0,0.70955914]
[1755019208416,1.0020569,119820.0,119810.0,0.70955914]
[1755019209028,1.0020569,119820.0,119810.0,0.71055914]
[1755019209826,1.0020569,119820.0,119810.0,0.2052038]
[1755019210027,0.92848,119820.0,119810.0,0.71055914]
[1755019210321,1.0119269,119820.0,119810.0,0.71055914]
[1755019211129,1.0119269,119820.0,119810.0,0.2052038]
[1755019211333,1.0119269,119820.0,119810.0,0.71055914]
[1755019214031,0.82567,119820.0,119810.0,0.71055914]
[1755019214235,0.80972,119820.0,119810.0,0.71055914]
[1755019214432,0.92848,119820.0,119810.0,0.71055914]
[1755019215739,0.9146,119820.0,119810.0,0.71055914]
[1755019215937,0.8589,119820.0,119810.0,0.71055914]
[1755019216234,0.80972,119820.0,119810.0,0.71055914]
[1755019217933,0.07807406,119840.0,119830.0,0.03313]
[1755019218138,1.02024746,119840.0,119830.0,0.70954524]
[1755019218941,1.0117534,119840.0,119830.0,0.70954524]
[1755019219128,0.92832,119840.0,119830.0,1.21490058]
[1755019219330,0.92832,119840.0,119830.0,0.2041899]
[1755019219531,1.011753,119840.0,119830.0,0.70954524]
[1755019219933,0.92832,119840.0,119830.0,0.70954524]
[1755019220134,0.80956,119840.0,119830.0,1.21490058]
[1755019220329,0.8357425,119840.0,119830.0,1.21490058]
[1755019220535,0.81148,119840.0,119830.0,1.21490058]
[1755019220741,0.81248,119840.0,119830.0,1.21490058]
[1755019221535,0.81148,119840.0,119830.0,0.2041899]
[1755019221742,0.81148,119840.0,119830.0,1.21490058]
[1755019222247,0.83567545,119840.0,119830.0,0.2041899]
[1755019222536,0.22838845,119840.0,119830.0,0.70954524]
[1755019222742,0.14395545,119840.0,119830.0,0.70954524]
[1755019223241,0.11976,119840.0,119830.0,0.70954524]
[1755019223443,0.11976,119840.0,119830.0,0.71780863]
[1755019223641,0.11976,119840.0,119830.0,1.22316397]
[1755019223940,0.10588,119840.0,119830.0,0.21245329]
[1755019224136,0.08154,119840.0,119830.0,1.22316397]
[1755019224343,0.01595,119840.0,119830.0,1.22316397]
[1755019224540,0.06219,119850.0,119840.0,0.09579]
[1755019224738,0.92812,119860.0,119850.0,0.194306]
[1755019225041,0.82531,119860.0,119850.0,0.204176]
[1755019225242,0.82531,119860.0,119850.0,0.72665364]
[1755019225443,0.92812,119860.0,119850.0,0.2212983]
[1755019226041,0.92812,119860.0,119850.0,0.72665364]
[1755019226345,0.92812,119860.0,119850.0,0.2212983]
[1755019227045,0.92812,119860.0,119850.0,0.72665364]
[1755019227245,0.92812,119860.0,119850.0,0.72765364]
[1755019227442,0.92812,119860.0,119850.0,0.2222983]
[1755019227848,1.011539,119860.0,119850.0,0.60690364]
[1755019228048,1.111539,119860.0,119850.0,0.1015483]
[1755019228249,1.011539,119860.0,119850.0,0.1015483]
[1755019228744,1.011539,119860.0,119820.0,0.20802061]
[1755019228745,0.03844,119830.0,119820.0,0.20802061]
[1755019228953,1.0260399,119830.0,119820.0,0.71337595]
[1755019229138,1.0260399,119830.0,119820.0,0.20788061]
[1755019229450,1.0260399,119830.0,119820.0,0.74807595]
[1755019229647,1.0260399,119830.0,119820.0,0.77160595]
[1755019229854,1.0260399,119830.0,119820.0,0.30403061]
[1755019230046,1.0260399,119830.0,119820.0,0.80938595]
[1755019230241,1.1360399,119830.0,119820.0,0.2145339]
[1755019230445,0.1677769,119820.0,119810.0,0.63603564]
[1755019230651,0.1456238,119810.0,119800.0,0.18391128]
[1755019230849,1.12031902,119810.0,119800.0,0.58881614]
[1755019231039,0.1300708,119800.0,119790.0,0.318805]
[1755019231244,0.2003708,119800.0,119790.0,0.74069534]
[1755019231646,0.2003708,119800.0,119790.0,0.75435534]
[1755019231851,0.2680701,119800.0,119790.0,0.79213534]
[1755019232442,0.3580701,119800.0,119790.0,0.27312]
[1755019232642,0.2003778,119790.0,119780.0,0.75862974]
[1755019232948,1.0282578,119790.0,119780.0,0.79640974]
[1755019233346,0.94479,119790.0,119780.0,0.79640974]
[1755019233546,1.0282578,119790.0,119780.0,0.2910544]
[1755019233758,1.0282578,119790.0,119780.0,0.79640974]
[1755019234657,1.0282578,119790.0,119780.0,0.88503657]
[1755019235351,0.94479,119790.0,119780.0,0.88503657]
[1755019236251,0.07919,119790.0,119780.0,0.88503657]
[1755019236447,0.94559,119790.0,119780.0,0.88503657]
[1755019236651,0.11691,119790.0,119780.0,0.88503657]
[1755019236851,0.21875669,119830.0,119820.0,0.0834469]
[1755019237045,1.13655669,119830.0,119820.0,0.67642907]
[1755019237249,1.04655669,119830.0,119820.0,0.67642907]
[1755019238054,1.15655669,119830.0,119820.0,0.67642907]
[1755019238454,1.16155669,119830.0,119820.0,0.67642907]
[1755019238858,1.16155669,119830.0,119820.0,0.0834469]
[1755019239057,1.16455669,119830.0,119820.0,0.67642907]
[1755019239561,1.16255669,119830.0,119820.0,0.67642907]
[1755019239860,1.05255669,119830.0,119820.0,0.67642907]
[1755019240059,0.22475669,119830.0,119820.0,0.79627907]
[1755019240360,1.05243669,119830.0,119820.0,0.79627907]
[1755019240558,1.10005809,119830.0,119820.0,0.79627907]
[1755019240955,1.10049809,119830.0,119820.0,0.79627907]
[1755019241464,0.94675819,119830.0,119820.0,0.79627907]
[1755019241649,0.97933819,119830.0,119820.0,0.79627907]
[1755019242052,1.00290819,119830.0,119820.0,0.79627907]
[1755019242357,1.01705819,119830.0,119820.0,0.79627907]
[1755019242862,1.09949749,119830.0,119820.0,0.79627907]
[1755019243254,1.09949749,119830.0,119820.0,0.71283217]
[1755019243650,0.105605,119820.0,119810.0,0.38707272]
[1755019243856,0.200355,119820.0,119810.0,0.98005489]
[1755019244051,0.11691,119820.0,119810.0,0.89660189]
[1755019244554,0.200355,119820.0,119810.0,0.89660189]
[1755019244756,0.200355,119820.0,119810.0,0.30361972]
[1755019245067,0.201355,119820.0,119810.0,0.89660189]
[1755019245261,0.201355,119820.0,119810.0,0.59298217]
[1755019245564,0.201355,119820.0,119810.0,0.65194217]
[1755019245752,0.201355,119820.0,119810.0,0.11985]
[1755019245953,0.130062,119810.0,119800.0,0.01668511]
[1755019246158,1.035722,119810.0,119800.0,0.01668511]
[1755019246465,1.125722,119810.0,119800.0,0.01668511]
[1755019247159,1.125722,119810.0,119800.0,0.60966728]
[1755019247556,1.035722,119810.0,119800.0,0.01668511]
[1755019247761,1.035722,119810.0,119800.0,0.01768511]
[1755019248264,1.035722,119810.0,119800.0,0.61066728]
[1755019248565,1.145722,119810.0,119800.0,0.01768511]
[1755019248765,1.035722,119810.0,119800.0,0.01768511]
[1755019250259,1.035722,119810.0,119800.0,0.13753511]
[1755019250456,0.200362,119810.0,119800.0,0.81397618]
[1755019250660,1.036442,119810.0,119800.0,0.81397618]
[1755019251371,1.036442,119810.0,119800.0,0.22099401]
[1755019251570,1.036442,119810.0,119800.0,0.81397618]
[1755019254461,0.01541,119810.0,119800.0,0.22099401]
[1755019254670,0.88327,119810.0,119800.0,0.81397618]
[1755019254862,0.85069,119810.0,119800.0,1.40695835]
[1755019255063,0.85069,119810.0,119800.0,0.81397618]
[1755019255262,0.90543,119810.0,119800.0,0.22099401]
[1755019255570,1.035642,119810.0,119800.0,0.22099401]
[1755019255770,1.035642,119810.0,119800.0,0.81397618]
[1755019256177,0.95219,119810.0,119800.0,0.81397618]
[1755019256374,0.95219,119810.0,119800.0,0.22099401]
[1755019256572,0.0703,119820.0,119800.0,0.38790781]
[1755019256763,1.0450751,119820.0,119810.0,0.2033021]
[1755019257665,1.0450751,119820.0,119810.0,0.79628427]
[1755019257866,1.0450751,119820.0,119810.0,0.2033021]
[1755019258062,1.0450751,119820.0,119810.0,0.79628427]
[1755019258268,1.0460751,119820.0,119810.0,0.2033021]
[1755019258467,1.0460751,119820.0,119810.0,0.79628427]
[1755019258668,1.0460751,119820.0,119810.0,0.2033021]
[1755019258863,1.0460751,119820.0,119810.0,0.79628427]
[1755019259065,0.9757751,119820.0,119810.0,0.2033021]
[1755019259371,1.0478551,119820.0,119810.0,0.2033021]
[1755019259674,0.96441,119820.0,119810.0,0.79628427]
[1755019259871,0.97805,119820.0,119810.0,0.79628427]
[1755019260176,1.0614946,119820.0,119810.0,0.2033021]
[1755019260362,1.0614946,119820.0,119810.0,0.79628427]
[1755019260972,1.0614946,119820.0,119810.0,0.2033021]
[1755019261374,0.88161,119820.0,119810.0,0.79628427]
[1755019261573,0.8662,119820.0,119810.0,0.79628427]
[1755019261872,0.86632,119820.0,119810.0,0.79628427]
[1755019262070,0.90086,119820.0,119810.0,0.79628427]
[1755019262368,0.91698,119820.0,119810.0,0.79628427]
[1755019262575,0.95452,119820.0,119810.0,0.79628427]
[1755019262766,0.0892,119820.0,119810.0,0.79628427]
[1755019262968,0.95484,119820.0,119810.0,0.79628427]
[1755019263679,0.95484,119820.0,119810.0,0.2033021]
[1755019263870,1.068895,119820.0,119810.0,0.79628427]
[1755019264072,0.98545,119820.0,119810.0,0.79628427]
[1755019264376,1.068895,119820.0,119810.0,0.79628427]
[1755019264676,0.98545,119820.0,119810.0,0.70904567]
[1755019264877,1.0688949,119820.0,119810.0,0.2033021]
[1755019265374,1.0688949,119820.0,119810.0,0.70904567]
[1755019265571,1.0688949,119820.0,119810.0,0.63642567]
[1755019265767,1.0688949,119820.0,119810.0,0.0834521]
[1755019265972,1.69463847,119820.0,119810.0,0.0834521]
[1755019266178,0.2022619,119810.0,119800.0,0.01668511]
[1755019266470,0.2022619,119810.0,119800.0,0.10014401]
[1755019266779,0.81800547,119810.0,119800.0,0.01668511]
[1755019267173,0.2022759,119790.0,119780.0,0.0877328]
[1755019267372,1.0696359,119790.0,119780.0,0.0877328]
[1755019267570,1.0696359,119790.0,119780.0,0.0835728]
[1755019267779,1.0696359,119790.0,119780.0,0.58931637]
[1755019268384,1.1996359,119790.0,119780.0,0.58931637]
[1755019268584,1.0696359,119790.0,119780.0,0.1068028]
[1755019269290,1.0696359,119790.0,119780.0,0.79683255]
[1755019269782,0.98617,119790.0,119780.0,0.79683255]
[1755019270378,0.94863,119790.0,119780.0,0.79683255]
[1755019270576,0.91409,119790.0,119780.0,0.79683255]
[1755019271089,0.88348,119790.0,119780.0,0.79683255]
[1755019271280,0.86736,119790.0,119780.0,0.79683255]
[1755019271477,0.07208,119800.0,119790.0,0.0834657]
[1755019271478,0.10951,119800.0,119790.0,0.0834657]
[1755019271682,0.98713,119800.0,119790.0,0.2036357]
[1755019271883,1.0705887,119800.0,119790.0,0.79672545]
[1755019272382,1.0705887,119800.0,119790.0,0.2036357]
[1755019272985,1.0705887,119800.0,119790.0,0.79672545]
[1755019273484,0.98713,119800.0,119790.0,0.79672545]
[1755019273984,0.98813,119800.0,119790.0,0.79672545]
[1755019274378,0.98813,119800.0,119790.0,0.2036357]
[1755019274578,0.98813,119800.0,119790.0,0.79672545]
[1755019274783,0.98813,119800.0,119790.0,0.2036357]
[1755019274984,1.0715888,119800.0,119790.0,0.79672545]
[1755019275583,1.0715888,119800.0,119790.0,0.2036357]
[1755019275783,1.0715888,119800.0,119790.0,0.79672545]
[1755019276188,1.0715888,119800.0,119790.0,0.2036357]
[1755019276482,1.0715888,119800.0,119790.0,0.1314657]
[1755019276686,1.0715888,119800.0,119790.0,0.67655545]
[1755019276884,1.0715888,119800.0,119790.0,0.0834657]
[1755019277088,1.0715888,119800.0,119790.0,0.67655545]
[1755019277283,1.0715888,119800.0,119790.0,0.0834657]
[1755019277583,1.0715888,119800.0,119780.0,0.2994544]
[1755019277584,0.1208957,119790.0,119780.0,0.3706844]
[1755019277890,0.2022757,119790.0,119780.0,0.86683415]
[1755019278189,0.2022757,119790.0,119780.0,0.3557744]
[1755019278385,0.2022757,119790.0,119780.0,0.1315688]
[1755019278585,0.3222757,119790.0,119780.0,0.0001]
[1755019278889,0.2022757,119790.0,119780.0,0.0001]
[1755019279083,0.3122757,119790.0,119780.0,0.0001]
[1755019280188,0.2022897,119770.0,119760.0,0.00462]
[1755019280485,1.2004097,119770.0,119760.0,0.00462]
[1755019280683,1.2004097,119770.0,119760.0,0.0881066]
[1755019280889,1.0704097,119770.0,119760.0,0.0881066]
[1755019281387,1.0704097,119770.0,119760.0,0.0901066]
[1755019282190,1.0704097,119770.0,119760.0,0.0931066]
[1755019282391,1.07882887,119770.0,119760.0,0.0931066]
[1755019282582,1.0704097,119770.0,119760.0,0.0931066]
[1755019283088,1.07890921,119770.0,119760.0,0.68619635]
[1755019283288,1.0704097,119770.0,119760.0,0.68619635]
[1755019283488,1.0704097,119770.0,119760.0,0.1163366]
[1755019283689,1.0704097,119770.0,119760.0,0.70942635]
[1755019284388,1.0704097,119770.0,119760.0,0.1503666]
[1755019284790,0.98693,119770.0,119760.0,0.80859503]
[1755019284991,1.05235566,119770.0,119760.0,0.82350503]
[1755019287085,1.05235566,119770.0,119760.0,0.23041528]
[1755019287486,1.05235566,119770.0,119760.0,0.82350503]
[1755019289095,1.05235566,119770.0,119760.0,0.23041528]
[1755019289296,1.13583516,119770.0,119760.0,0.23041528]
[1755019289497,1.13583516,119770.0,119760.0,0.82350503]
[1755019289897,1.13583516,119770.0,119760.0,0.23041528]
[1755019290098,1.13583516,119770.0,119760.0,0.82350503]
[1755019290390,1.13583516,119770.0,119760.0,0.23041528]
[1755019290599,1.13583516,119770.0,119760.0,0.82350503]
[1755019291697,1.05235566,119770.0,119760.0,0.82350503]
[1755019291891,1.05235566,119770.0,119760.0,0.82299503]
[1755019294297,0.93370566,119770.0,119760.0,0.82299503]
[1755019294496,0.98462566,119770.0,119760.0,0.82299503]
[1755019294696,1.05500566,119770.0,119760.0,0.82299503]
[1755019295901,1.13848526,119770.0,119760.0,0.82299503]
[1755019297398,1.13848526,119770.0,119760.0,0.70333503]
[1755019297903,1.13848526,119770.0,119760.0,0.82065503]
[1755019298404,1.13848526,119770.0,119760.0,0.22756528]
[1755019298592,1.13848526,119770.0,119760.0,0.82065503]
[1755019299796,1.05500566,119770.0,119760.0,0.82065503]
[1755019302098,0.93370566,119770.0,119760.0,0.82065503]
[1755019302896,0.98462566,119770.0,119760.0,0.82065503]
[1755019303795,0.95028566,119770.0,119760.0,0.82065503]
[1755019304692,0.93370566,119770.0,119760.0,0.82065503]
[1755019305697,0.06542566,119770.0,119760.0,0.82065503]
[1755019305891,0.95727282,119780.0,119760.0,0.98762353]
[1755019306091,1.00586282,119780.0,119770.0,0.79388925]
[1755019306297,0.88456282,119780.0,119770.0,0.79388925]
[1755019306800,0.88456282,119780.0,119770.0,0.80230441]
[1755019306995,0.01848282,119780.0,119770.0,0.80230441]
[1755019307204,0.01648282,119780.0,119770.0,0.80230441]
[1755019307594,0.01648282,119780.0,119770.0,0.80430441]
[1755019308105,0.01648282,119780.0,119770.0,0.80530441]
[1755019309009,0.89974,119790.0,119770.0,0.90101881]
[1755019309203,0.9867,119790.0,119780.0,0.79388215]
[1755019310606,0.9867,119790.0,119780.0,0.70672614]
[1755019311408,0.9867,119790.0,119780.0,0.2007924]
[1755019311595,0.9867,119790.0,119780.0,0.70672614]
[1755019311596,0.94833,119790.0,119780.0,0.70672614]
[1755019311800,0.9867,119790.0,119780.0,0.70672614]
[1755019314814,1.0701655,119790.0,119780.0,0.2007924]
[1755019315004,1.0701655,119790.0,119780.0,0.70672614]
[1755019315203,0.9867,119790.0,119780.0,0.2007924]
[1755019315414,0.9867,119790.0,119780.0,0.70672614]
[1755019315809,1.0701655,119790.0,119780.0,0.70672614]
[1755019316003,0.9867,119790.0,119780.0,0.70672614]
[1755019316609,1.0701655,119790.0,119780.0,0.0834724]
[1755019316908,1.1074555,119790.0,119770.0,0.1669544]
[1755019317114,0.2047724,119780.0,119770.0,0.2504339]
[1755019317400,0.3247724,119780.0,119770.0,0.2504339]
[1755019317601,0.2047724,119780.0,119770.0,0.2504339]
[1755019317810,0.2047724,119780.0,119770.0,0.3677539]
[1755019318001,0.3147724,119780.0,119770.0,0.3677539]
[1755019318200,0.2047724,119780.0,119770.0,0.87368764]
[1755019318400,0.3247724,119780.0,119770.0,0.87568764]
[1755019319012,0.3247724,119780.0,119770.0,0.3697539]
[1755019319214,0.3247724,119780.0,119770.0,0.86128764]
[1755019319507,0.2047724,119780.0,119770.0,0.86128764]
[1755019319707,0.2047724,119780.0,119770.0,0.0854749]
[1755019319908,0.83070614,119780.0,119770.0,0.002]
[1755019320108,0.3247724,119780.0,119770.0,0.0854794]
[1755019320405,0.83070614,119780.0,119770.0,0.003]
[1755019320605,0.83070614,119780.0,119770.0,0.0864794]
[1755019320807,0.2047724,119780.0,119770.0,0.0864794]
[1755019321004,0.3247724,119780.0,119770.0,0.0864794]
[1755019321813,0.2047724,119780.0,119770.0,0.59241314]
[1755019322011,0.3147724,119780.0,119770.0,0.59241314]
[1755019322212,0.3147724,119780.0,119770.0,0.67209314]
[1755019322409,0.2047724,119780.0,119770.0,0.67209314]
[1755019322714,0.98942,119780.0,119770.0,0.70955314]
[1755019323500,0.91671,119780.0,119770.0,0.70955314]
[1755019324710,0.95012,119780.0,119770.0,0.70955314]
[1755019325109,0.9739,119780.0,119770.0,0.70955314]
[1755019325310,0.98776,119780.0,119770.0,0.70955314]
[1755019325613,1.22046447,119800.0,119790.0,0.1634254]
[1755019325911,1.11353447,119800.0,119790.0,0.70653914]
[1755019326112,1.1282022,119800.0,119790.0,0.2006054]
[1755019326309,1.0682022,119800.0,119790.0,0.70653914]
[1755019326613,1.0682022,119800.0,119790.0,0.79349741]
[1755019327012,0.98474,119800.0,119790.0,0.79349741]
[1755019327914,0.98574,119800.0,119790.0,0.79349741]
[1755019328107,0.98574,119800.0,119790.0,0.2006054]
[1755019328302,0.98574,119800.0,119790.0,0.79349741]
[1755019328703,1.0691984,119800.0,119790.0,0.2006054]
[1755019328907,0.98574,119800.0,119790.0,0.79349741]
[1755019329616,0.90559,119800.0,119790.0,0.79349741]
[1755019329816,0.98574,119800.0,119790.0,0.79349741]
[1755019330115,0.98574,119800.0,119790.0,0.2006054]
[1755019330317,0.98574,119800.0,119790.0,0.79349741]
[1755019330515,0.98574,119800.0,119790.0,0.2006054]
[1755019330720,0.98574,119800.0,119790.0,0.79349741]
[1755019331304,0.98474,119800.0,119790.0,0.79349741]
[1755019331912,0.98474,119800.0,119790.0,0.2006054]
[1755019332114,0.98474,119800.0,119790.0,0.79349741]
[1755019332316,0.98474,119800.0,119790.0,0.2006054]
[1755019332617,0.98474,119800.0,119790.0,0.79349741]
[1755019335314,0.13607599,119810.0,119800.0,0.11714]
[1755019335618,1.00043599,119810.0,119800.0,0.79349051]
[1755019336116,0.13607599,119810.0,119800.0,0.79349051]
[1755019336318,1.00015599,119810.0,119800.0,0.79349051]
[1755019336615,1.00115599,119810.0,119800.0,0.79349051]
[1755019337017,1.00015599,119810.0,119800.0,0.79349051]
[1755019338511,0.89704599,119810.0,119800.0,0.79349051]
[1755019338711,0.93045599,119810.0,119800.0,0.79349051]
[1755019339614,0.89704599,119810.0,119800.0,1.38638252]
[1755019339919,0.89704599,119810.0,119800.0,0.79349051]
[1755019340416,0.93045599,119810.0,119800.0,0.79349051]
[1755019340614,0.99923599,119810.0,119800.0,0.79349051]
[1755019342309,0.99923599,119810.0,119800.0,0.2005985]
[1755019342919,0.99923599,119810.0,119800.0,0.79349051]
[1755019345320,0.96159599,119810.0,119800.0,0.79349051]
[1755019345619,0.09843599,119810.0,119800.0,0.79349051]
[1755019345819,0.13607599,119810.0,119800.0,0.79349051]
[1755019346625,0.13607599,119810.0,119800.0,1.21211628]
[1755019347826,0.13607599,119810.0,119800.0,0.2005985]
[1755019348027,0.13607599,119810.0,119800.0,1.21211628]
[1755019350329,0.13607599,119810.0,119800.0,0.2005985]
[1755019350529,0.13607599,119810.0,119800.0,1.21211628]
[1755019351325,0.13607599,119810.0,119800.0,0.2005985]
[1755019351530,0.13607599,119810.0,119800.0,1.21211628]
[1755019352031,0.03388599,119810.0,119800.0,1.21211628]
[1755019353518,0.06682599,119810.0,119800.0,1.21211628]
[1755019354629,0.13791599,119810.0,119800.0,1.21211628]
[1755019356935,0.13791599,119810.0,119800.0,0.2005985]
[1755019357136,0.13791599,119810.0,119800.0,1.21211628]
[1755019357436,0.09900599,119810.0,119800.0,0.2005985]
[1755019357733,0.09900599,119810.0,119800.0,1.21211628]
[1755019358127,0.12333599,119810.0,119800.0,1.21211628]
[1755019358436,0.13791599,119810.0,119800.0,1.21211628]
[1755019360542,0.09900599,119810.0,119800.0,1.21211628]
[1755019360739,0.03388599,119810.0,119800.0,1.21211628]
[1755019360947,0.01841599,119810.0,119800.0,1.21211628]
[1755019366044,0.08255819,119830.0,119820.0,0.0834445]
[1755019366247,0.92469,119840.0,119820.0,0.88599239]
[1755019366544,0.9724,119840.0,119830.0,0.70550639]
[1755019366743,1.03981641,119840.0,119830.0,0.70550639]
[1755019367849,1.04281641,119840.0,119830.0,0.70550639]
[1755019368046,1.04281641,119840.0,119830.0,0.71392117]
[1755019368248,1.03981641,119840.0,119830.0,0.71392117]
[1755019368448,1.04281641,119840.0,119830.0,0.71392117]
[1755019368652,0.18997641,119840.0,119830.0,0.71392117]
[1755019369258,0.19197641,119840.0,119830.0,0.71392117]
[1755019370144,0.08794641,119840.0,119830.0,0.71392117]
[1755019371346,0.12088641,119840.0,119830.0,0.71392117]
[1755019371542,0.12088641,119840.0,119830.0,0.20816228]
[1755019371739,0.12088641,119840.0,119830.0,0.71392117]
[1755019371940,0.08794641,119840.0,119830.0,1.21968006]
[1755019372153,0.07241641,119840.0,119830.0,1.21968006]
[1755019372448,0.07241641,119840.0,119830.0,2.07124006]
[1755019372750,0.005,119840.0,119830.0,2.07124006]
[1755019383747,0.02056,119840.0,119830.0,2.07124006]
[1755019383946,0.05234,119840.0,119830.0,2.07124006]
[1755019384151,0.08969,119840.0,119830.0,2.07124006]
[1755019384360,0.05234,119840.0,119830.0,2.07124006]
[1755019384558,0.02056,119840.0,119830.0,2.07124006]
[1755019385961,0.02056,119840.0,119830.0,1.05972228]
[1755019386161,0.02056,119840.0,119830.0,2.07124006]
[1755019387063,0.005,119840.0,119830.0,2.07124006]
[1755019389063,0.2041906,119840.0,119830.0,0.1997475]
[1755019389365,0.2041906,119840.0,119830.0,0.70550639]
[1755019389664,0.2041906,119840.0,119830.0,0.1856675]
[1755019389959,0.2041906,119840.0,119830.0,0.2025275]
[1755019390161,1.0496706,119840.0,119830.0,0.2025275]
[1755019390562,1.0496706,119840.0,119830.0,0.70828639]
[1755019390756,1.0496706,119840.0,119830.0,0.2025275]
[1755019390953,1.0496706,119840.0,119830.0,0.70828639]
[1755019392176,1.0496706,119840.0,119830.0,0.2025275]
[1755019392357,1.0496706,119840.0,119830.0,0.70828639]
[1755019392558,1.0496706,119840.0,119830.0,0.2025275]
[1755019392858,1.0496706,119840.0,119830.0,0.70828639]
[1755019396672,1.0496706,119840.0,119830.0,0.2025275]
[1755019396865,1.0496706,119840.0,119830.0,0.70828639]
[1755019399675,1.0496706,119840.0,119830.0,0.50575889]
[1755019399971,1.0496706,119840.0,119830.0,0.58919639]
[1755019400267,1.0496706,119840.0,119830.0,0.0834375]
[1755019400457,1.0496706,119840.0,119830.0,0.63872639]
[1755019400662,1.0496706,119840.0,119830.0,0.70859639]
[1755019400859,1.0496706,119840.0,119830.0,0.2028375]
[1755019401069,1.0496706,119840.0,119830.0,0.70859639]
[1755019401471,1.0496706,119840.0,119830.0,0.2028375]
[1755019401668,1.0496706,119840.0,119830.0,0.70859639]
[1755019403065,0.9805406,119840.0,119830.0,0.70859639]
[1755019403572,0.005,119840.0,119830.0,1.21435528]
[1755019403969,0.005,119840.0,119830.0,0.70859639]
[1755019404165,0.005,119840.0,119830.0,1.21435528]
[1755019406480,0.005,119840.0,119830.0,0.2028375]
[1755019406674,0.005,119840.0,119830.0,1.21435528]
[1755019411987,0.005,119840.0,119830.0,0.70859639]
[1755019412285,0.12145,119840.0,119830.0,0.70859639]
[1755019413183,0.2048806,119840.0,119830.0,0.2028375]
[1755019413384,0.2048806,119840.0,119830.0,0.70859639]
[1755019413584,0.12145,119840.0,119830.0,0.70859639]
[1755019414783,0.10743,119840.0,119830.0,0.70859639]
[1755019414987,0.08421,119840.0,119830.0,0.70859639]
[1755019415178,0.05249,119840.0,119830.0,0.70859639]
[1755019415379,0.02044,119840.0,119830.0,0.70859639]
[1755019415686,0.05249,119840.0,119830.0,0.70859639]
[1755019415886,0.12205,119840.0,119830.0,0.70859639]
[1755019416186,0.2054806,119840.0,119830.0,0.2028375]
[1755019416386,0.2054806,119840.0,119830.0,0.70859639]
[1755019419686,0.07509,119840.0,119830.0,0.70859639]
[1755019420181,0.02044,119840.0,119830.0,0.70859639]
[1755019420782,0.005,119840.0,119830.0,1.21435528]
[1755019421688,0.005,119840.0,119830.0,0.70859639]
[1755019422490,0.005,119840.0,119830.0,1.21435528]
[1755019423390,0.005,119840.0,119830.0,2.04415528]
[1755019426387,0.83796,119860.0,119850.0,0.2030036]
[1755019426591,0.83796,119860.0,119850.0,0.70876249]
[1755019426793,0.3532682,119870.0,119860.0,0.1887467]
[1755019426983,0.3672882,119870.0,119860.0,0.70875559]
[1755019427184,0.2838725,119870.0,119860.0,0.70875559]
[1755019427586,0.2466325,119870.0,119860.0,0.70875559]
[1755019427891,1.1493692,119880.0,119870.0,0.11958]
[1755019428092,1.1493692,119880.0,119870.0,0.70874859]
[1755019428792,1.21456136,119880.0,119870.0,0.70874859]
[1755019429181,1.21656136,119880.0,119870.0,0.70874859]
[1755019429586,1.21656136,119880.0,119870.0,0.2029897]
[1755019429785,1.21656136,119880.0,119870.0,0.70874859]
[1755019431082,1.21756136,119880.0,119870.0,0.70874859]
[1755019439396,1.06486326,119880.0,119870.0,0.70874859]
[1755019439602,1.13663326,119880.0,119870.0,0.70874859]
[1755019442205,1.13663326,119880.0,119870.0,0.58916859]
[1755019442707,1.13663326,119880.0,119870.0,0.65710859]
[1755019442897,1.13663326,119880.0,119870.0,0.68730859]
[1755019443300,1.13663326,119880.0,119870.0,0.70921859]
[1755019447410,1.13663326,119880.0,119870.0,0.63661859]
[1755019447704,0.2031797,119870.0,119860.0,0.0834167]
[1755019447905,0.2031797,119870.0,119860.0,0.1815567]
[1755019448209,0.2031797,119870.0,119860.0,0.70922559]
[1755019448811,0.2041797,119870.0,119860.0,0.2034667]
[1755019449010,0.2041797,119870.0,119860.0,0.70922559]
[1755019449605,0.2041797,119870.0,119850.0,0.3228649]
[1755019449606,0.0834167,119860.0,119850.0,0.3228649]
[1755019449814,1.0321867,119860.0,119850.0,0.3703149]
[1755019450203,1.0321867,119860.0,119850.0,0.87607379]
[1755019450903,1.0321867,119860.0,119850.0,0.87707379]
[1755019451110,1.0321867,119860.0,119850.0,0.3713149]
[1755019451306,1.0321867,119860.0,119850.0,0.87707379]
[1755019454412,1.0321867,119860.0,119850.0,0.3713149]
[1755019454604,1.0321867,119860.0,119850.0,0.87707379]
[1755019455513,1.0321867,119860.0,119850.0,0.79365079]
[1755019460316,1.0321867,119860.0,119850.0,0.2878919]
[1755019460506,1.0321867,119860.0,119850.0,0.79365079]
[1755019461016,1.0321867,119860.0,119850.0,0.2878919]
[1755019461215,1.0321867,119860.0,119850.0,0.79365079]
[1755019464118,1.05094416,119860.0,119850.0,0.2878919]
[1755019464316,1.05094416,119860.0,119850.0,0.79365079]
[1755019467018,1.05094416,119860.0,119850.0,0.2878919]
[1755019467220,1.05094416,119860.0,119850.0,0.79365079]
[1755019467714,1.05094416,119860.0,119850.0,0.2878919]